Cogmind - Beta 9.4 *** ADVENTURER MODE // 2020.06.16 @ 20:46:45 Player: Scyralis Result: Self-destructed Performance ------------- Evolutions (1) 500 Regions Visited (3) 600 Robots Destroyed (35) 175 Value Destroyed (423) 423 Prototype IDs (4) 80 Alien Tech Used (0) 0 Bonus (0) 0 TOTAL SCORE: 1778 Bonus ------- None Cogmind --------- Core Integrity 206/400 Matter 267/300 Energy 60/100 System Corruption 3% Temperature Cool (0) Movement Core (150) Ox2 Location -9/Mines Parts ------- > --- POWER (1) -------- (None) > --- PROPULSION (2) --- (None) > --- UTILITY (4) ------ Small Storage Unit Terrain Scan Processor Core Shielding Trap Extractor > --- WEAPON (2) ------- Mining Laser > --- INVENTORY (6) ---- (None) Peak State ------------ > --- POWER ------------ Light Ion Engine > --- PROPULSION ------- Hover Unit Hover Unit > --- UTILITY ---------- Heat Sink Small Storage Unit Visual Processing Unit Terrain Scan Processor > --- WEAPON ----------- EM Shotgun Beam Rifle > --- INVENTORY -------- (None) [Rating: 13] Favorites ----------- Power Light Ion Engine Engine Light Ion Engine Propulsion Hover Unit Wheel Wheel Hover Unit Hover Unit Flight Unit Flight Unit Utility Terrain Scan Processor Device Heat Sink Storage Small Storage Unit Processor Terrain Scan Processor Protection Core Shielding Weapon Medium Laser Energy Gun Medium Laser Ballistic Gun Assault Rifle Special Weapon Mining Laser Build | -11 -10 -9 -9 ------- Run | Scr Mat Mat Min Slots Evolved 2 | . . 2 . Power . | . . . . Propulsion . | . . . . Utility 2 | . . 2 . Weapon . | . . . . Parts Attached 30 | 5 7 18 . Power 3 | 1 . 2 . Engine 3 | 1 . 2 . Core . | . . . . Reactor . | . . . . Propulsion 9 | 2 2 5 . Treads . | . . . . Leg . | . . . . Wheel 2 | 2 . . . Hover 4 | . 2 2 . Flight 3 | . . 3 . Utility 9 | . 3 6 . Device 3 | . . 3 . Storage 3 | . 2 1 . Processor 2 | . 1 1 . Hackware . | . . . . Protection 1 | . . 1 . Artifact . | . . . . Weapon 9 | 2 2 5 . Energy Gun 6 | . 2 4 . Energy Cannon . | . . . . Ballistic Gun 2 | 2 . . . Ballistic Cannon . | . . . . Launcher . | . . . . Special Weapon 1 | . . 1 . Impact Weapon . | . . . . Slashing Weapon . | . . . . Piercing Weapon . | . . . . Special Melee Weapon . | . . . . Unidentified Prototypes . | . . . . Parts Lost 10 | . . 9 1 Power 2 | . . 2 . Propulsion 4 | . . 3 1 Utility 2 | . . 2 . Weapon 2 | . . 2 . Highest Loss Streak 4 | . . 4 1 Average Slot Usage (%) 79 | . 88 74 . Engine 10 | . 14 8 . Wheel 5 | . 17 . . Hover 13 | . 10 15 . Flight 2 | . . 4 . Device 6 | . . 9 . Storage 10 | . 13 9 . Processor 12 | . 4 16 . Energy Gun 16 | . 27 10 . Naked Turns . | . . . . Heaviest Build 23 | 6 23 14 . Greatest Support 26 | 26 26 12 . Greatest Overweight (x) 1 | . 1 1 . Average Overweight (x) . | . . . . Largest Inventory Capacity 10 | 4 10 6 6 Average Capacity 6 | 4 8 5 6 Most Carried 3 | 2 2 3 . Average Carried . | . . . . Final Capacity 6 | 4 6 6 6 Final Carried . | . . . . Class Distribution -------------------- 59% | Mutant 40% | Scavenger-Mutant Dominant Class ---------------- Mutant | -10/Materials Scavenger-Mutant | -9/Materials Scavenger-Mutant | -9/Mines Resources | -11 -10 -9 -9 ----------- Run | Scr Mat Mat Min Matter Collected 446 | 194 162 90 . Remotely . | . . . . Salvage Created 1114 | 26 390 698 . Parts 89 | 2 37 50 . Haulers Intercepted 2 | . . 2 . Recyclers Shooed 2 | . 2 . . Parts Field Recycled . | . . . . Retrieved Matter . | . . . . Parts Self-Destructed . | . . . . Prevented . | . . . . Kills | -11 -10 -9 -9 ------- Run | Scr Mat Mat Min Combat Hostiles Destroyed 11 | . 1 10 . Guns 11 | . 1 10 . Classes Destroyed 11 | 1 5 5 . Worker 9 | . 7 2 . Builder 7 | . 5 2 . Tunneler 1 | 1 . . . Hauler 2 | . . 2 . Recycler 2 | . 1 1 . Mechanic 1 | . . 1 . Watcher 2 | . 1 1 . Swarmer 4 | . . 4 . Grunt 5 | . 1 4 . Brawler 1 | . . 1 . Sentry 1 | . . 1 . Best Kill Streak 5 | 1 5 4 . Combat Bots Only 4 | . 1 4 . Max Kills in Single Turn 1 | 1 1 1 . Gunslinging . | . . . . Exploded . | . . . . Melee . | . . . . Uniques/NPCs Destroyed . | . . . . Combat | -11 -10 -9 -9 -------- Run | Scr Mat Mat Min Damage Taken 689 | . 57 576 56 Core 222 | . 28 166 28 Absorbed by Shields . | . . . . Core Remaining (%) 94 | 100 88 . . Volleys Fired 124 | 9 33 81 1 Largest 2 | 2 2 2 1 Hottest 100 | 40 100 95 100 Shots Fired 180 | 18 66 95 1 Gun 179 | 18 66 95 . Cannon . | . . . . Launcher . | . . . . Special 1 | . . . 1 Kinetic 18 | 18 . . . Thermal 106 | . 66 39 1 Explosive . | . . . . Electromagnetic 56 | . . 56 . Robot Hit Streak 49 | 16 8 49 9 Robot Miss Streak 3 | 1 3 2 . Penetration Max . | . . . . Secondary Targets . | . . . . Shots Hit Robots 128 | 16 33 78 1 Core Hits 56 | 3 18 35 . Critical Hits . | . . . . Critical Kills . | . . . . Critical Parts Destroyed . | . . . . Melee Attacks . | . . . . Impact . | . . . . Slashing . | . . . . Piercing . | . . . . Sneak Attacks . | . . . . Combat Hostiles . | . . . . Follow-up Attacks . | . . . . Damage Inflicted 1912 | 167 376 1345 24 Guns 1792 | 167 376 1249 . Cannons . | . . . . Explosions 80 | . . 80 . Melee . | . . . . Ramming 16 | . . 16 . Kinetic 167 | 167 . . . Thermal 880 | . 376 480 24 Explosive . | . . . . Electromagnetic 849 | . . 849 . Impact . | . . . . Slashing . | . . . . Piercing . | . . . . Highest Corruption 3 | . . 3 3 Average Corruption 2 | . . 2 3 Corruption Purged . | . . . . Effects 1 | . . 1 . Data Loss (minor) 1 | . . 1 . Overload Shots . | . . . . Overflow Damage . | . . . . Projectiles . | . . . . Explosions . | . . . . Melee . | . . . . Knockbacks . | . . . . Impact . | . . . . Kinetic . | . . . . Secondary . | . . . . Self-Inflicted Damage 53 | . . 53 . Shots 2 | . . 2 . Rammed 2 | . . 2 . Targets Rammed 2 | . . 2 . Kicked . | . . . . Crushed . | . . . . Highest Temperature 342 | . 342 315 . Average Temperature 129 | . 151 97 . Received Heat Transfer 303 | . 12 291 . Effects 5 | . 4 1 . Energy Bleed 2 | . 1 1 . Interference 2 | . 2 . . Short Circuit 1 | . 1 . . Siege Activations . | . . . . Robots Corrupted . | . . . . Combat Hostiles . | . . . . Parts Fried 2 | . . 2 . Impact Corruptions . | . . . . Robots Melted . | . . . . Combat Hostiles . | . . . . Parts Melted 1 | . 1 . . Heat Transferred 2246 | . 1110 1086 50 Parts Sabotaged . | . . . . Parts Stolen . | . . . . Parts Stripped . | . . . . Power Chain Reactions 3 | . . 3 . Missiles Intercepted . | . . . . Alert | -11 -10 -9 -9 ------- Run | Scr Mat Mat Min Peak Influence 250 | 5 115 250 49 Average Influence 90 | 1 60 116 45 Maximum Alert Level 1 | . . 1 . Low Security (%) 90 | 100 100 83 100 Level 1 9 | . . 16 . Level 2 . | . . . . Level 3 . | . . . . Level 4 . | . . . . Level 5 . | . . . . High Security . | . . . . Max Security . | . . . . Squads Dispatched 4 | . 1 3 . Investigation 3 | . 1 2 . Extermination . | . . . . Reinforcement 1 | . . 1 . Assault . | . . . . Garrison . | . . . . Intercept . | . . . . Construction Impeded . | . . . . Haulers Reinforced . | . . . . Stealth | -11 -10 -9 -9 --------- Run | Scr Mat Mat Min Distress Signals 1 | . . 1 . Communications Jammed . | . . . . Distress Signals . | . . . . Times Spotted 29 | . 3 22 4 Peak Tracking Total 4 | . 1 4 4 Tactical Retreats 2 | . . 2 . Traps | -11 -10 -9 -9 ------- Run | Scr Mat Mat Min Traps Triggered 3 | . 2 1 . Indirectly . | . . . . Trap Hack Attempts . | . . . . Triggered . | . . . . Disarmed 2 | . 2 . . Reprogrammed . | . . . . Reused . | . . . . Traps Extracted . | . . . . Installed . | . . . . Triggered . | . . . . Machines | -11 -10 -9 -9 ---------- Run | Scr Mat Mat Min Machines Disabled 2 | . . 2 . Max in Single Turn 2 | . . 2 . Machines Sabotaged . | . . . . Garrisons Compromised . | . . . . Overloaded Fab Kills . | . . . . Fab Network Shutdowns . | . . . . Hacking | -11 -10 -9 -9 --------- Run | Scr Mat Mat Min Machines Accessed 6 | . 3 3 . Terminals 5 | . 3 2 . Fabricators . | . . . . Repair Stations 1 | . . 1 . Recycling Units . | . . . . Scanalyzers . | . . . . Garrison Access . | . . . . Total Hacks 32 | . 18 14 . Successful 25 | . 13 12 . Failed 7 | . 5 2 . Catastrophic . | . . . . Database Lockouts . | . . . . Manual . | . . . . Terminals 28 | . 18 10 . Fabricators . | . . . . Repair Stations 4 | . . 4 . Recycling Units . | . . . . Scanalyzers . | . . . . Garrison Access . | . . . . Terminal Hacks 21 | . 13 8 . Record 6 | . 6 . . Prototype ID Bank 2 | . 1 1 . Branch Access Points 1 | . . 1 . Alert Level 1 | . . 1 . Locate Traps 1 | . 1 . . Disarm Traps 2 | . 2 . . Dispatch Records 1 | . . 1 . Recall Reinforcements 1 | . . 1 . Recall Assault 1 | . . 1 . Registered Components 1 | . 1 . . Zone Layout 4 | . 2 2 . Fabricator Hacks . | . . . . Repair Station Hacks 4 | . . 4 . Scan Component 2 | . . 2 . Repair 2 | . . 2 . Recycling Unit Hacks . | . . . . Scanalyzer . | . . . . Garrison Access Hacks . | . . . . Unauthorized Hacks . | . . . . Terminals . | . . . . Fabricators . | . . . . Repair Stations . | . . . . Recycling Units . | . . . . Scanalyzers . | . . . . Garrison Access . | . . . . Data Cores Recovered . | . . . . Used . | . . . . Hacking Detections 4 | . 2 2 . Full Trace Events 3 | . 1 2 . Feedback Events . | . . . . Feedback Blocked . | . . . . Robot Schematics Acquired . | . . . . Robots Built . | . . . . Matter . | . . . . Time . | . . . . Total Robot Build Rating . | . . . . Part Schematics Acquired . | . . . . Parts Built . | . . . . Matter . | . . . . Time . | . . . . Total Part Build Rating . | . . . . Parts Repaired 2 | . . 2 . Time 58 | . . 58 . Parts Recycled . | . . . . Recycled Matter . | . . . . Retrieved Matter . | . . . . Retrieved Components . | . . . . Parts Scanalyzed . | . . . . Part Schematics Acquired . | . . . . Parts Damaged . | . . . . Bothacking | -11 -10 -9 -9 ------------ Run | Scr Mat Mat Min Used RIF Installer . | . . . . Robots Hacked . | . . . . Non-combat . | . . . . Combat . | . . . . Robot Hacks Applied . | . . . . Relay Couplers Released . | . . . . Robots Rewired . | . . . . Allies Hacked . | . . . . Hacks Repelled . | . . . . Allies | -11 -10 -9 -9 -------- Run | Scr Mat Mat Min Total Allies . | . . . . Largest Group . | . . . . Highest-Rated Group . | . . . . Highest-Rated Ally . | . . . . Total Orders . | . . . . Ally Attacks . | . . . . Total Damage . | . . . . Kills . | . . . . Allies Corrupted . | . . . . Allies Melted . | . . . . Intel | -11 -10 -9 -9 ------- Run | Scr Mat Mat Min Robot Analysis Total . | . . . . Derelict Logs Recovered . | . . . . Drone Launches . | . . . . Drone Recoveries . | . . . . Exploration | -11 -10 -9 -9 ------------- Run | Scr Mat Mat Min Turns Passed 955 | 69 298 584 4 Spaces Moved 648 | 41 206 401 . Core 6 | 6 . . . Treads . | . . . . Legs . | . . . . Wheels 151 | 35 116 . . Hover 423 | . 90 333 . Flight 68 | . . 68 . Fastest Speed 37 | 50 56 37 . Average Speed 71 | 84 77 67 . Slowest Speed 120 | 90 110 120 . Overloaded Moves . | . . . . Propulsion Burnouts . | . . . . Robots Hopped . | . . . . Cave-ins Triggered . | . . . . Exploration Rate (%) 15 | 3 31 25 2 Regions Visited 3 Branch Regions 1 Pre-discovered Areas . | . . . . Known Exits Taken 1 | . . 1 . Unknown Exits Taken 2 | 1 1 . . Scrap Searched . | . . . . Spaces Dug . | . . . . Terrain Destroyed 64 | . . 64 . Melee . | . . . . Projectile . | . . . . AOE 64 | . . 64 . Actions | -11 -10 -9 -9 --------- Run | Scr Mat Mat Min Total 967 | 59 281 626 1 Wait 117 | . 20 97 . Move 645 | 40 205 400 . Hop . | . . . . Pick Up 33 | 5 9 19 . Fast Attach . | . . . . Attach 30 | 5 7 18 . Detach . | . . . . Swap . | . . . . Drop 16 | . 7 9 . Fire 124 | 9 33 81 1 Melee . | . . . . Ram 2 | . . 2 . Kick . | . . . . Crush . | . . . . Escape Stasis . | . . . . Rewire . | . . . . Trap . | . . . . Miscellaneous . | . . . . Route ------- -11/Scrapyard -10/Materials -9/Materials -9/Mines History --------- Turn | Location | Event 30 | -11/Scrapyard | Discovered new exit (range 15) 70 | -11/Scrapyard | Entered Materials 313 | -10/Materials | Build established: Mutant 335 | -10/Materials | Discovered new exit (range 16) 368 | -10/Materials | Entered another Materials area 368 | -9/Materials | Evolved 2 slots: Utility x2 514 | -9/Materials | Repaired Lgt. Ion Engine 548 | -9/Materials | Repaired EM Shotgun 569 | -9/Materials | Identified exit to Mines 803 | -9/Materials | Lost 4 parts (1p1n1u1w) 919 | -9/Materials | Lost 3 parts (1p1n1w) 952 | -9/Materials | Entered Mines 956 | -9/Mines | Self-destructed Last Messages --------------- 00875_ Acquired Sml. Storage Unit. 00876_ R-06 Scavenger collects Lgt. Assault Rifle. 00877_ U-05 Engineer lays Concrete. 00878_ Dropped Recalibrator. 00878_ K-01 Serf collects debris. 00879_ Hover Unit destroyed. 00881_ Lgt. Ion Engine destroyed. 00881_ R-06 Scavenger collects Flight Unit. 00883_ K-01 Serf collects debris. 00888_ Beam Rifle destroyed. 00900_ Slammed into K-01 Serf. 00907_ Slammed into T-07 Excavator. 00907_ Destabilizing: System corrupted (+1). 00914_ Acquired Core Shielding. 00920_ Acquired Trap Extractor. 00948_ Acquired Mining Laser. LOCATION=MINES GOAL=ESCAPE Something is scanning the area. 00956_ Hover Unit destroyed. Map ----- +----------------------------------------------------+ | | | | | | | | | | | | | | | | | | | | | | | | | | | ?????????????????????????????????????????????????? | | ?????????????????????????????????????????????????? | | ?????????????????????????????????????????????????? | | ?????????????????????????????????????????????????? | | ?????????????????????????????????????????????????? | | ?????????????????????????????????????????????????? | | ?????????????????????????????????????????????????? | | ???????????????????????####??????????????????????? | | ????????????????????#### ##?????????????????????? | | ????????????????????? ##????????????????????? | | ??????????????????????# #????????????????????? | | ?????????????????????## #????????????????????? | | ?????????????????????# s @ #?????????????????????? | | ?????????????????????# ss ##?????????????????????? | | ?????????????????????## s##??????????????????????? | | ??????????????????????###????????????????????????? | | ?????????????????????????????????????????????????? | | ?????????????????????????????????????????????????? | | ?????????????????????????????????????????????????? | | ?????????????????????????????????????????????????? | | ?????????????????????????????????????????????????? | | ?????????????????????????????????????????????????? | | ?????????????????????????????????????????????????? | | ?????????????????????????????????????????????????? | | ?????????????????????????????????????????????????? | | ?????????????????????????????????????????????????? | | ?????????????????????????????????????????????????? | | ?????????????????????????????????????????????????? | | ?????????????????????????????????????????????????? | | ?????????????????????????????????????????????????? | | ?????????????????????????????????????????????????? | | ?????????????????????????????????????????????????? | | ?????????????????????????????????????????????????? | | ?????????????????????????????????????????????????? | | ?????????????????????????????????????????????????? | | ?????????????????????????????????????????????????? | | ?????????????????????????????????????????????????? | +----------------------------------------------------+ Best States ------------- Heat Dissipation 38 Energy Generation 10 Energy Capacity 125 Matter Stores 300 Matter Capacity 300 Sight Range 18 Terrain Scan Density 85 Resistance: KI 20 Resistance: TH 20 Resistance: EX 20 Resistance: EM 20 Resistance: I 20 Resistance: S 20 Resistance: P 20 Core Shielding 20 Evasion (%) 62 Offensive Hacking 10 Item Schematics ----------------- None Robot Schematics ------------------ None Fabricated ------------ Nothing Alien Tech Used ----------------- None Achievements -------------- None Challenges ------------ None Game ------ Seed MomentumLobotomySource Manual? 0 Play Time 00:10:35 Cumulative 29.7 hours Start 2020.06.16 @ 20:36:16 End 2020.06.16 @ 20:46:45 Sessions 1 Manual Loads 0 Difficulty Adventurer Special Mode None Game No. 27 Rogue 0 Adventurer 27 Explorer 0 Win Type - Total 0 Types 0/0/0/0/0/0/0 Lore% 15 Gallery% 35 Achievement% 25 Wizard Run 0 Options --------- ASCII 0 Keyboard 0 Movement Numpad Keybinds 0 Fullscreen 0 Font 12/Smallcaps Map View 83x54 Tactical HUD 1 Map Filters NONE Filters NONE Steam X RUN: 4e0be43f-ad5a-422e-92bd-3e643c138506